fUSD/lending_fUSD_20241017
["ID","MTS","AMOUNT","RATE_DAILY","PERIOD"]
[340399336,1729191040970,-2499807.07,0.000198,5]
[340399337,1729191040982,-211.0,0.000198,2]
[340399338,1729191040996,-176.973685,0.000198,2]
[340399339,1729191041010,-176.973685,0.000198,2]
[340399340,1729191041023,-8917.77670419,0.000198,2]
[340399341,1729191041034,-1075.5669394,0.00019886,2]
[340399342,1729191041048,-9482.1698022,0.00019886,2]
[340399343,1729191041061,-210270.145191,0.00019888,2]
[340399344,1729191041074,-150.0,0.00019899,2]
[340399345,1729191041088,-300.0,0.000199,7]
[340399346,1729191041101,-103638.88267734,0.0002,2]
[340399347,1729191041114,-7000.0,0.0002,7]
[340399348,1729191041128,-2371.99216882,0.0002,2]
[340399349,1729191041140,-1026.10515317,0.0002,2]
[340399350,1729191041153,-500.0,0.0002,7]
[340399351,1729191041165,-500.0,0.0002,2]
[340399352,1729191041177,-500.0,0.0002,2]
[340399353,1729191041190,-500.0,0.0002,2]
[340399354,1729191041204,-500.0,0.0002,2]
[340399355,1729191041215,-500.0,0.0002,2]
[340399356,1729191041225,-500.0,0.0002,7]
[340399357,1729191041238,-500.0,0.0002,7]
[340399358,1729191041250,-500.0,0.0002,7]
[340399359,1729191041263,-500.0,0.0002,7]
[340399360,1729191041276,-500.0,0.0002,7]
[340399361,1729191041289,-500.0,0.0002,7]
[340399362,1729191041304,-500.0,0.0002,7]
[340399363,1729191041317,-500.0,0.0002,7]
[340399364,1729191041330,-500.0,0.0002,7]
[340399365,1729191041342,-500.0,0.0002,7]
[340399366,1729191041353,-500.0,0.0002,7]
[340399367,1729191041364,-500.0,0.0002,7]
[340399368,1729191041378,-289.15,0.0002,7]
[340399369,1729191041391,-500.0,0.0002,2]
[340399370,1729191041403,-500.0,0.0002,2]
[340399371,1729191041414,-500.0,0.0002,2]
[340399372,1729191041426,-500.0,0.0002,2]
[340399373,1729191041438,-500.0,0.0002,2]
[340399374,1729191041452,-500.0,0.0002,2]
[340399375,1729191041463,-500.0,0.0002,2]
[340399376,1729191041473,-500.0,0.0002,2]
[340399377,1729191041484,-500.0,0.0002,2]
[340399378,1729191041495,-500.0,0.0002,2]
[340399379,1729191041506,-500.0,0.0002,2]
[340399380,1729191041518,-500.0,0.0002,2]
[340399381,1729191041529,-500.0,0.0002,2]
[340399382,1729191041540,-500.0,0.0002,2]
[340399383,1729191041552,-500.0,0.0002,2]
[340399384,1729191041563,-500.0,0.0002,2]
[340399385,1729191041578,-500.0,0.0002,2]
[340399386,1729191041589,-500.0,0.0002,2]
[340399387,1729191041600,-500.0,0.0002,2]
[340399388,1729191041611,-500.0,0.0002,2]
[340399389,1729191041623,-500.0,0.0002,2]
[340399390,1729191041636,-500.0,0.0002,2]
[340399391,1729191041648,-500.0,0.0002,2]
[340399392,1729191041661,-500.0,0.0002,2]
[340399393,1729191041673,-500.0,0.0002,2]
[340399394,1729191041684,-500.0,0.0002,2]
[340399395,1729191041696,-500.0,0.0002,2]
[340399396,1729191041708,-500.0,0.0002,2]
[340399397,1729191041719,-500.0,0.0002,2]
[340399398,1729191041732,-500.0,0.0002,2]
[340399399,1729191041744,-500.0,0.0002,2]
[340399400,1729191041756,-500.0,0.0002,2]
[340399401,1729191041768,-500.0,0.0002,2]
[340399402,1729191041781,-500.0,0.0002,2]
[340399403,1729191041794,-500.0,0.0002,2]
[340399404,1729191041808,-500.0,0.0002,2]
[340399405,1729191041821,-500.0,0.0002,2]
[340399406,1729191041834,-500.0,0.0002,2]
[340399407,1729191041845,-500.0,0.0002,2]
[340399408,1729191041860,-267.57,0.0002,2]
[340399409,1729191041872,-2289.0,0.0002,2]
[340399410,1729191041885,-600.0,0.0002,2]
[340399411,1729191041897,-600.0,0.0002,2]
[340399412,1729191041909,-600.0,0.0002,2]
[340399413,1729191041921,-600.0,0.0002,2]
[340399414,1729191041933,-600.0,0.0002,2]
[340399415,1729191041946,-600.0,0.0002,2]
[340399416,1729191041958,-600.0,0.0002,2]
[340399417,1729191041970,-600.0,0.0002,2]
[340399418,1729191041982,-600.0,0.0002,2]
[340399419,1729191041993,-600.0,0.0002,2]
[340399420,1729191042004,-500.0,0.0002,2]
[340399421,1729191042018,-1000.0,0.0002,3]
[340399422,1729191042032,-500.0,0.0002,7]
[340399423,1729191042050,-500.0,0.0002,7]
[340399424,1729191042062,-500.0,0.0002,7]
[340399425,1729191042073,-500.0,0.0002,7]
[340399426,1729191042086,-500.0,0.0002,2]
[340399427,1729191042099,-500.0,0.0002,2]
[340399428,1729191042111,-500.0,0.0002,2]
[340399429,1729191042124,-500.0,0.0002,2]
[340399430,1729191042136,-500.0,0.0002,7]
[340399431,1729191042147,-403.03,0.0002,2]
[340399432,1729191042159,-500.0,0.0002,7]
[340399433,1729191042171,-500.0,0.0002,7]
[340399434,1729191042182,-303.45,0.0002,7]
[340399435,1729191042194,-303.6,0.0002,2]
[340399436,1729191042206,-2856.075464,0.0002,2]
[340399437,1729191042221,-996.56,0.0002,2]
[340399438,1729191042232,-176.973685,0.0002,2]
[340399439,1729191042244,-176.973685,0.0002,2]
[340399440,1729191042255,-500.0,0.0002,2]
[340399441,1729191042266,-800.0,0.0002,2]
[340399442,1729191042277,-150.0,0.0002,2]
[340399443,1729191042288,-426.0,0.0002,2]
[340399444,1729191042299,-150.0,0.0002,2]
[340399445,1729191042310,-1000.0,0.0002,2]
[340399446,1729191042322,-175.59,0.0002,2]
[340399447,1729191042333,-175.59,0.0002,2]
[340399448,1729191042344,-175.59,0.0002,2]
[340399449,1729191042355,-175.59,0.0002,2]
[340399450,1729191042367,-175.59,0.0002,2]
[340399451,1729191042378,-175.59,0.0002,2]
[340399452,1729191042389,-175.59,0.0002,2]
[340399453,1729191042400,-175.59,0.0002,2]
[340399454,1729191042411,-175.59,0.0002,2]
[340399455,1729191042422,-175.59,0.0002,2]
[340399456,1729191042433,-175.59,0.0002,2]
[340399457,1729191042444,-175.59,0.0002,2]
[340399458,1729191042457,-175.59,0.0002,2]
[340399459,1729191042468,-175.59,0.0002,2]
[340399460,1729191042479,-175.59,0.0002,2]
[340399461,1729191042491,-175.59,0.0002,2]
[340399462,1729191042502,-175.59,0.0002,2]
[340399463,1729191042514,-175.59,0.0002,2]
[340399464,1729191042527,-175.59,0.0002,2]
[340399465,1729191042538,-175.59,0.0002,2]
[340399466,1729191042549,-175.59,0.0002,2]
[340399467,1729191042561,-175.59,0.0002,2]
[340399468,1729191042572,-175.59,0.0002,2]
[340399469,1729191042584,-175.59,0.0002,2]
[340399470,1729191042596,-175.59,0.0002,2]
[340399471,1729191042610,-175.59,0.0002,2]
[340399472,1729191042621,-175.59,0.0002,2]
[340399473,1729191042633,-175.59,0.0002,2]
[340399474,1729191042646,-175.59,0.0002,2]
[340399475,1729191042659,-175.59,0.0002,2]
[340399476,1729191042671,-175.59,0.0002,2]
[340399477,1729191042683,-175.59,0.0002,2]
[340399478,1729191042695,-175.59,0.0002,2]
[340399479,1729191042707,-175.59,0.0002,2]
[340399480,1729191042719,-175.59,0.0002,2]
[340399481,1729191042731,-175.59,0.0002,2]
[340399482,1729191042742,-175.59,0.0002,2]
[340399483,1729191042753,-175.59,0.0002,2]
[340399484,1729191042766,-175.59,0.0002,2]
[340399485,1729191042777,-175.59,0.0002,2]
[340399486,1729191042789,-175.59,0.0002,2]
[340399487,1729191042800,-175.59,0.0002,2]
[340399488,1729191042815,-175.59,0.0002,2]
[340399489,1729191042827,-175.59,0.0002,2]
[340399490,1729191042838,-175.59,0.0002,2]
[340399491,1729191042849,-175.59,0.0002,2]
[340399492,1729191042860,-175.59,0.0002,2]
[340399493,1729191042872,-175.59,0.0002,2]
[340399494,1729191042883,-175.59,0.0002,2]
[340399495,1729191042894,-175.59,0.0002,2]
[340399496,1729191042906,-175.59,0.0002,2]
[340399497,1729191042917,-175.59,0.0002,2]
[340399498,1729191042928,-175.59,0.0002,2]
[340399499,1729191042940,-175.59,0.0002,2]
[340399500,1729191042952,-175.59,0.0002,2]
[340399501,1729191042963,-175.59,0.0002,2]
[340399502,1729191042975,-175.59,0.0002,2]
[340399503,1729191042986,-175.59,0.0002,2]
[340399504,1729191042996,-175.59,0.0002,2]
[340399505,1729191043005,-175.59,0.0002,2]
[340399506,1729191043015,-175.59,0.0002,2]
[340399507,1729191043024,-175.59,0.0002,2]
[340399508,1729191043034,-175.59,0.0002,2]
[340399509,1729191043044,-175.59,0.0002,2]
[340399510,1729191043054,-175.59,0.0002,2]
[340399515,1729191043349,-175.59,0.0002,2]
[340399516,1729191043374,-175.59,0.0002,2]
[340399517,1729191043392,-175.59,0.0002,2]
[340399518,1729191043402,-175.59,0.0002,2]
[340399519,1729191043412,-175.59,0.0002,2]
[340399520,1729191043422,-175.59,0.0002,2]
[340399521,1729191043432,-175.59,0.0002,2]
[340399522,1729191043441,-175.59,0.0002,2]
[340399523,1729191043451,-175.59,0.0002,2]
[340399524,1729191043462,-175.59,0.0002,2]
[340399525,1729191043471,-175.59,0.0002,2]
[340399526,1729191043481,-175.59,0.0002,2]
[340399527,1729191043491,-175.59,0.0002,2]
[340399528,1729191043500,-175.59,0.0002,2]
[340399529,1729191043510,-500.0,0.0002,2]
[340399530,1729191043519,-175.59,0.0002,2]
[340399531,1729191043528,-175.59,0.0002,2]
[340399532,1729191043538,-175.59,0.0002,2]
[340399533,1729191043547,-175.59,0.0002,2]
[340399534,1729191043556,-175.59,0.0002,2]
[340399535,1729191043566,-175.59,0.0002,2]
[340399536,1729191043575,-175.59,0.0002,2]
[340399537,1729191043585,-175.59,0.0002,2]
[340399538,1729191043594,-175.59,0.0002,2]
[340399539,1729191043603,-175.59,0.0002,2]
[340399540,1729191043612,-175.59,0.0002,2]
[340399541,1729191043621,-175.59,0.0002,2]
[340399542,1729191043631,-175.59,0.0002,2]
[340399543,1729191043640,-175.59,0.0002,2]
[340399544,1729191043649,-175.59,0.0002,2]
[340399545,1729191043659,-175.59,0.0002,2]
[340399546,1729191043668,-175.59,0.0002,2]
[340399547,1729191043677,-175.59,0.0002,2]
[340399548,1729191043687,-175.59,0.0002,2]
[340399549,1729191043696,-175.59,0.0002,2]
[340399550,1729191043707,-1000.0,0.00020164,2]
[340399551,1729191043716,-900.0,0.00020164,2]
[340399552,1729191043726,-500.0,0.00020164,2]
[340399553,1729191043736,-6871.71229075,0.00020197,2]
[340399554,1729191043745,-159.73844961,0.00020233,2]
[340399555,1729191043754,-211.0,0.0002027,2]
[340399557,1729191043763,-173.82,0.00020274,2]
[340399559,1729191043772,-150.0,0.00020332,2]
[340399561,1729191043781,-174.34,0.00020548,2]
[340399562,1729191043791,-172.29,0.00020548,2]
[340399563,1729191043800,-150.0,0.00020587,2]
[340399564,1729191043813,-150.0,0.00020592,2]
[340399565,1729191043823,-150.0,0.00020595,2]
[340399566,1729191043832,-150.0,0.00020598,2]
[340399567,1729191043841,-150.0,0.000206,2]
[340399568,1729191043852,-150.0,0.00020605,2]
[340399569,1729191043861,-150.0,0.00020608,2]
[340399570,1729191043871,-150.0,0.00020611,2]
[340399571,1729191043881,-150.0,0.00020612,2]
[340399572,1729191043892,-150.0,0.00020613,2]
[340399573,1729191043901,-150.0,0.00020618,2]
[340399574,1729191043911,-150.0,0.00020619,2]
[340399575,1729191043920,-150.0,0.00020626,2]
[340399576,1729191043929,-150.0,0.00020632,2]
[340399577,1729191043939,-150.0,0.00020635,2]
[340399578,1729191043949,-150.0,0.00020637,2]
[340399579,1729191043960,-150.0,0.00020641,2]
[340399580,1729191043969,-150.0,0.00020641,2]
[340399581,1729191043979,-150.0,0.00020642,2]
[340399582,1729191043989,-150.0,0.00020643,2]
[340399583,1729191043998,-150.0,0.00020643,2]
[340399584,1729191044007,-150.0,0.00020643,2]
[340399585,1729191044017,-150.0,0.0002066,2]
[340399586,1729191044026,-150.0,0.00020665,2]
[340399587,1729191044036,-150.0,0.00020667,2]
[340399588,1729191044046,-150.0,0.00020675,2]
[340399589,1729191044055,-150.0,0.00020677,2]
[340399590,1729191044065,-150.0,0.00020683,2]
[340399591,1729191044075,-150.0,0.00020684,2]
[340399592,1729191044084,-150.0,0.00020685,2]
[340399593,1729191044094,-150.0,0.00020691,2]
[340399594,1729191044103,-269.96305052,0.000207,2]
[340399595,1729191044113,-150.0,0.00020703,2]
[340399596,1729191044123,-156.21976284,0.00020707,2]
[340399597,1729191044132,-177.25225951,0.00020713,2]
[340399598,1729191044142,-150.0,0.00020717,2]
[340399599,1729191044151,-150.0,0.00020719,2]
[340399600,1729191044161,-150.0,0.00020721,2]
[340399601,1729191044171,-150.0,0.00020722,2]
[340399602,1729191044181,-150.0,0.00020727,2]
[340399603,1729191044191,-150.0,0.00020729,2]
[340399604,1729191044200,-211.0,0.0002073,2]
[340399605,1729191044212,-150.0,0.00020739,2]
[340399606,1729191044222,-259.32874106,0.00020739,2]
[340399607,1729191044232,-150.0,0.00020749,2]
[340399608,1729191044242,-150.0,0.00020758,2]
[340399609,1729191044252,-150.0,0.00020759,2]
[340399610,1729191044262,-150.0,0.00020761,2]
[340399611,1729191044271,-150.0,0.00020762,2]
[340399612,1729191044280,-150.0,0.00020764,2]
[340399613,1729191044290,-150.0,0.00020768,2]
[340399614,1729191044299,-150.0,0.00020776,2]
[340399615,1729191044308,-150.0,0.00020776,2]
[340399616,1729191044317,-150.0,0.00020782,2]
[340399617,1729191044326,-150.0,0.00020792,2]
[340399618,1729191044335,-150.0,0.00020798,2]
[340399619,1729191044345,-150.0,0.00020798,2]
[340399620,1729191044354,-199.02694274,0.000208,2]
[340399621,1729191044363,-150.0,0.00020806,2]
[340399622,1729191044372,-150.0,0.00020811,2]
[340399623,1729191044381,-150.0,0.00020815,2]
[340399624,1729191044390,-150.0,0.00020816,2]
[340399625,1729191044399,-150.0,0.00020818,2]
[340399626,1729191044409,-150.0,0.00020823,2]
[340399627,1729191044418,-150.0,0.00020824,2]
[340399628,1729191044427,-150.0,0.00020826,2]
[340399629,1729191044437,-150.0,0.00020831,2]
[340399630,1729191044446,-150.0,0.00020838,2]
[340399631,1729191044457,-150.0,0.0002084,2]
[340399632,1729191044467,-150.0,0.0002085,2]
[340399633,1729191044477,-150.0,0.0002085,2]
[340399634,1729191044486,-150.0,0.0002086,2]
[340399635,1729191044496,-150.0,0.00020861,2]
[340399636,1729191044506,-150.0,0.00020861,2]
[340399637,1729191044516,-959.03689738,0.00020871,2]
[340399638,1729191044526,-150.0,0.0002089,2]
[340399639,1729191044536,-488.95,0.000209,2]
[340399640,1729191044546,-500.0,0.00021,2]
[340399641,1729191044556,-359.8003,0.00021,2]
[340399642,1729191044566,-1000.0,0.00021,2]
[340399643,1729191044575,-150.0,0.00021197,2]
[340399644,1729191044586,-211.0,0.000212,2]
[340399645,1729191044595,-1000.0,0.0002126,2]
[340399646,1729191044605,-900.0,0.0002126,2]
[340399647,1729191044615,-500.0,0.0002126,2]
[340399648,1729191044625,-303.6,0.0002136,2]
[340399649,1729191044635,-150.0,0.0002137,2]
[340399650,1729191044646,-426.0,0.0002137,2]
[340399651,1729191044655,-150.0,0.0002137,2]
[340399652,1729191044665,-500.0,0.0002137,2]
[340399653,1729191044675,-996.56,0.00021375,2]
[340399654,1729191044685,-151.0,0.00021378,2]
[340399655,1729191044695,-23298.33348303,0.00021398,2]
[340399656,1729191044705,-456.12484299,0.000216,4]
[340399657,1729191044715,-150.0,0.000216,4]
[340399658,1729191044725,-210.18844971,0.000216,4]
[340399659,1729191044736,-150.0,0.000216,4]
[340399660,1729191044746,-150.0,0.000216,4]
[340399661,1729191044756,-150.0,0.000216,4]
[340399662,1729191044765,-259.84052823,0.000216,4]
[340399663,1729191044775,-150.0,0.000216,4]
[340399664,1729191044784,-150.0,0.000216,4]
[340399665,1729191044794,-150.0,0.000216,4]
[340399666,1729191044803,-456.12484299,0.00021624,4]
[340399667,1729191044814,-210.18844971,0.00021624,4]
[340399668,1729191044823,-150.0,0.00021629,2]
[340399669,1729191044832,-456.12484299,0.00021648,4]
[340399670,1729191044842,-210.18844971,0.00021648,4]
[340399671,1729191044851,-150.0,0.00021669,4]
[340399672,1729191044861,-211.0,0.0002167,2]
[340399673,1729191044870,-456.12484299,0.00021673,4]
[340399674,1729191044880,-210.18844971,0.00021673,4]
[340399675,1729191044889,-150.0,0.00021686,4]
[340399676,1729191044900,-150.0,0.00021692,4]
[340399677,1729191044910,-150.0,0.00021696,4]
[340399678,1729191044920,-456.12484299,0.00021697,4]
[340399679,1729191044930,-210.18844971,0.00021697,4]
[340399680,1729191044941,-456.12484299,0.00021721,4]
[340399681,1729191044950,-210.18844971,0.00021721,4]
[340399682,1729191044962,-150.0,0.00021737,4]
[340399683,1729191044971,-456.12484299,0.00021745,4]
[340399684,1729191044980,-210.18844971,0.00021745,4]
[340399685,1729191044989,-6871.71229075,0.00021764,2]
[340399686,1729191044999,-456.12484299,0.0002177,4]
[340399687,1729191045009,-210.18844971,0.0002177,4]
[340399688,1729191045018,-150.0,0.00021771,4]
[340399689,1729191045028,-422.9,0.00021776,2]
[340399690,1729191045038,-150.0,0.00021785,4]
[340399691,1729191045048,-150.0,0.00021792,4]
[340399692,1729191045058,-456.12484299,0.00021794,4]
[340399693,1729191045068,-210.18844971,0.00021794,4]
[340399694,1729191045078,-150.0,0.00021806,4]
[340399695,1729191045088,-456.12484299,0.00021818,4]
[340399696,1729191045098,-210.18844971,0.00021818,4]
[340399697,1729191045107,-4591.0,0.00021827,2]
[340399698,1729191045118,-456.12484299,0.00021842,4]
[340399699,1729191045127,-210.18844971,0.00021842,4]
[340399700,1729191045137,-150.0,0.00021857,4]
[340399701,1729191045147,-456.12484299,0.00021867,4]
[340399702,1729191045156,-210.18844971,0.00021867,4]
[340399703,1729191045166,-150.0,0.00021867,4]
[340399704,1729191045176,-150.0,0.00021874,4]
[340399705,1729191045185,-150.0,0.00021877,4]
[340399706,1729191045195,-150.0,0.00021888,4]
[340399707,1729191045204,-456.12484299,0.00021891,4]
[340399708,1729191045214,-210.18844971,0.00021891,4]
[340399709,1729191045223,-456.12484299,0.00021915,4]
[340399710,1729191045233,-210.18844971,0.00021915,4]
[340399711,1729191045243,-375.0,0.00021917,2]
[340399712,1729191045252,-263.31,0.00021918,2]
[340399713,1729191045262,-1034.03,0.00021918,2]
[340399714,1729191045272,-456.12484299,0.00021939,4]
[340399715,1729191045282,-210.18844971,0.00021939,4]
[340399716,1729191045292,-150.0,0.00021943,4]
[340399717,1729191045301,-150.0,0.00021943,4]
[340399718,1729191045311,-456.12484299,0.00021964,4]
[340399719,1729191045320,-210.18844971,0.00021964,4]
[340399720,1729191045330,-150.0,0.00021969,4]
[340399721,1729191045339,-150.0,0.00021984,4]
[340399722,1729191045348,-456.12484299,0.00021988,4]
[340399723,1729191045357,-210.18844971,0.00021988,4]
[340399724,1729191045366,-527.99623615,0.00022,5]
[340399725,1729191045376,-419.73442877,0.00022,2]
[340399726,1729191045385,-249.99999801,0.00022,2]
[340399727,1729191045394,-155.8,0.00022,30]
[340399728,1729191045404,-1000.0,0.00022,4]
[340399729,1729191045413,-850.0,0.00022,2]
[340399730,1729191045422,-150.0,0.00022011,4]
[340399731,1729191045431,-456.12484299,0.00022012,4]
[340399732,1729191045440,-210.18844971,0.00022012,4]
[340399733,1729191045449,-150.0,0.00022029,4]
[340399734,1729191045459,-456.12484299,0.00022036,4]
[340399735,1729191045468,-210.18844971,0.00022036,4]
[340399736,1729191045478,-456.12484299,0.00022061,4]
[340399737,1729191045487,-210.18844971,0.00022061,4]
[340399738,1729191045496,-150.0,0.00022062,4]
[340399739,1729191045505,-150.0,0.00022062,2]
[340399740,1729191045515,-150.0,0.0002208,4]
[340399741,1729191045523,-150.0,0.0002208,4]
[340399742,1729191045533,-456.12484299,0.00022085,4]
[340399743,1729191045542,-210.18844971,0.00022085,4]
[340399744,1729191045551,-150.0,0.000221,10]
[340399745,1729191045560,-600.0,0.000221,2]
[340399746,1729191045569,-456.12484299,0.00022109,4]
[340399747,1729191045578,-210.18844971,0.00022109,4]
[340399748,1729191045588,-150.0,0.00022114,4]
[340399749,1729191045597,-211.0,0.0002213,2]
[340399751,1729191045606,-456.12484299,0.00022133,4]
[340399752,1729191045615,-210.18844971,0.00022133,4]
[340399753,1729191045626,-150.0,0.00022133,4]
[340399754,1729191045636,-1147.06,0.00022137,30]
[340399755,1729191045646,-150.0,0.00022149,4]
[340399756,1729191045656,-150.0,0.00022154,4]
[340399757,1729191045665,-456.12484299,0.00022158,4]
[340399758,1729191045675,-210.18844971,0.00022158,4]
[340399759,1729191045685,-150.0,0.00022176,4]
[340399760,1729191045695,-456.12484299,0.00022182,4]
[340399761,1729191045705,-210.18844971,0.00022182,4]
[340399762,1729191045714,-150.0,0.000222,4]
[340399763,1729191045724,-456.12484299,0.00022206,4]
[340399764,1729191045733,-210.18844971,0.00022206,4]
[340399765,1729191045743,-150.0,0.00022217,4]
[340399766,1729191045753,-456.12484299,0.0002223,4]
[340399767,1729191045763,-210.18844971,0.0002223,4]
[340399768,1729191045773,-150.0,0.00022246,4]
[340399769,1729191045783,-456.12484299,0.00022255,4]
[340399770,1729191045793,-210.18844971,0.00022255,4]
[340399771,1729191045802,-150.0,0.00022272,4]
[340399772,1729191045816,-456.12484299,0.00022279,4]
[340399773,1729191045829,-210.18844971,0.00022279,4]
[340399774,1729191045840,-150.0,0.00022286,4]
[340399775,1729191045851,-150.0,0.00022286,4]
[340399776,1729191045860,-456.12484299,0.00022303,4]
[340399777,1729191045869,-210.18844971,0.00022303,4]
[340399778,1729191045879,-456.12484299,0.00022327,4]
[340399779,1729191045889,-210.18844971,0.00022327,4]
[340399781,1729191045900,-150.0,0.00022338,4]
[340399782,1729191045909,-456.12484299,0.00022352,4]
[340399783,1729191045919,-210.18844971,0.00022352,4]
[340399784,1729191045928,-150.0,0.00022354,4]
[340399785,1729191045937,-1000.0,0.00022356,2]
[340399786,1729191045947,-900.0,0.00022356,2]
[340399787,1729191045959,-500.0,0.00022356,2]
[340399788,1729191045968,-150.0,0.00022368,4]
[340399789,1729191045978,-150.0,0.00022371,4]
[340399790,1729191045987,-456.12484299,0.00022376,4]
[340399791,1729191045998,-210.18844971,0.00022376,4]
[340399792,1729191046008,-456.12484299,0.000224,4]
[340399793,1729191046018,-210.18844971,0.000224,4]
[340399794,1729191046027,-150.0,0.000224,4]
[340399795,1729191046040,-150.0,0.000224,4]
[340399796,1729191046050,-150.0,0.00022423,4]
[340399798,1729191046060,-456.12484299,0.00022424,4]
[340399800,1729191046072,-210.18844971,0.00022424,4]
[340399802,1729191046082,-150.0,0.00022431,4]
[340399803,1729191046091,-400.0,0.00022441,2]
[340399804,1729191046100,-400.0,0.00022441,2]
[340399805,1729191046109,-400.0,0.00022441,2]
[340399806,1729191046119,-400.0,0.00022441,2]
[340399807,1729191046128,-456.12484299,0.00022448,4]
[340399809,1729191046138,-210.18844971,0.00022448,4]
[340399810,1729191046147,-150.0,0.00022457,4]
[340399811,1729191046156,-150.0,0.00022464,4]
[340399812,1729191046166,-456.12484299,0.00022473,4]
[340399813,1729191046175,-210.18844971,0.00022473,4]
[340399814,1729191046185,-161.73403636,0.0002249,2]
[340399815,1729191046194,-150.0,0.00022491,4]
[340399816,1729191046206,-150.0,0.00022494,2]
[340399817,1729191046216,-456.12484299,0.00022497,4]
[340399818,1729191046227,-210.18844971,0.00022497,4]
[340399819,1729191046238,-206.0,0.00022499,2]
[340399820,1729191046250,-206.0,0.00022499,2]
[340399821,1729191046261,-207.0,0.00022499,2]
[340399822,1729191046270,-207.0,0.00022499,2]
[340399823,1729191046280,-206.0,0.00022499,2]
[340399824,1729191046290,-248.0,0.00022499,2]
[340399826,1729191046300,-203.0,0.00022499,2]
[340399828,1729191046310,-221.052862,0.00022499,2]
[340399829,1729191046321,-164.66088,0.00022499,2]
[340399830,1729191046330,-211.0,0.00022499,2]
[340399831,1729191046340,-211.0,0.00022499,2]
[340399832,1729191046351,-211.0,0.00022499,2]
[340399833,1729191046363,-416.0,0.000225,5]
[340399834,1729191046372,-3000.0,0.000225,2]
[340399835,1729191046382,-456.12484299,0.00022521,4]
[340399837,1729191046391,-210.18844971,0.00022521,4]
[340399838,1729191046400,-150.0,0.00022523,4]
[340399839,1729191046410,-150.0,0.00022543,4]
[340399840,1729191046421,-456.12484299,0.00022545,4]
[340399841,1729191046430,-210.18844971,0.00022545,4]
[340399842,1729191046439,-150.0,0.0002256,4]
[340399843,1729191046448,-150.0,0.0002256,4]
[340399844,1729191046460,-456.12484299,0.0002257,4]
[340399845,1729191046470,-210.18844971,0.0002257,4]
[340399846,1729191046479,-456.12484299,0.00022594,4]
[340399847,1729191046488,-210.18844971,0.00022594,4]
[340399848,1729191046498,-211.0,0.000226,2]
[340399849,1729191046508,-150.0,0.000226,10]
[340399850,1729191046517,-150.0,0.00022615,4]
[340399851,1729191046527,-456.12484299,0.00022618,4]